Cogmind - Beta 12 @@@ ROGUE MODE // 2023.07.06 @ 17:57:47 Player: ZOT Result: Destroyed by C-17 Slicer with Blade Saw Performance ------------- Evolutions (2) 1000 Regions Visited (7) 1400 Robots Destroyed (12) 60 Value Destroyed (266) 266 Prototype IDs (23) 460 Alien Tech Used (0) 0 Bonus (433) 433 TOTAL SCORE: 3619 Bonus ------- Follower Combat Kills 133 Aligned with FarCom 300 Cogmind --------- Core Integrity 0/550 Matter 300/300 Energy 100/100 System Corruption 2% Temperature Cool (0) Movement Core (50) Location -8/Materials Parts ------- > --- POWER (2) -------- (None) > --- PROPULSION (3) --- (None) > --- UTILITY (4) ------ (None) > --- WEAPON (2) ------- (None) > --- INVENTORY (5) ---- ECM Suite Cloak of Protection Improved Utility Shielding Improved Trap Extractor (0/6) Peak State ------------ > --- POWER ------------ Light Deuterium Engine > --- PROPULSION ------- Airjet Flight Unit VTOL Module > --- UTILITY ---------- Improved Terrain Scanner Targeting Computer Particle Charger > --- WEAPON ----------- Mining Laser > --- INVENTORY -------- Wheel Advanced Visual Processing Unit ECM Suite Cloak of Protection Improved Utility Shielding [Rating: 18] Favorites ----------- Power Light Nuclear Core Engine Light Ion Engine Power Core Light Nuclear Core Propulsion Wheel Wheel Wheel Hover Unit Airjet Flight Unit Flight Unit Utility Targeting Computer Device Seismic Detector Storage Small Storage Unit Processor Targeting Computer Weapon Mining Laser Energy Gun EM Pulse Gun Ballistic Gun Assault Rifle Special Weapon Mining Laser Build | -11 -10 -10 -9 -9 -9 -8 -8 ------- Run | Jun Mat Min Mat Min Exi Min Mat Slots Evolved 4 | . . . 2 . . . 2 Power 1 | . . . . . . . 1 Propulsion 1 | . . . 1 . . . . Utility 2 | . . . 1 . . . 1 Weapon . | . . . . . . . . Parts Attached 23 | 9 . 1 9 . . 3 1 Power 3 | 1 . 1 . . . 1 . Engine 2 | 1 . . . . . 1 . Core 1 | . . 1 . . . . . Reactor . | . . . . . . . . Propulsion 8 | 3 . . 3 . . 1 1 Treads . | . . . . . . . . Leg . | . . . . . . . . Wheel 5 | 3 . . 1 . . . 1 Hover 1 | . . . . . . 1 . Flight 2 | . . . 2 . . . . Utility 8 | 3 . . 4 . . 1 . Device 4 | 2 . . 1 . . 1 . Storage 1 | 1 . . . . . . . Processor 3 | . . . 3 . . . . Hackware . | . . . . . . . . Protection . | . . . . . . . . Artifact . | . . . . . . . . Weapon 4 | 2 . . 2 . . . . Energy Gun 1 | 1 . . . . . . . Energy Cannon . | . . . . . . . . Ballistic Gun 1 | . . . 1 . . . . Ballistic Cannon . | . . . . . . . . Launcher . | . . . . . . . . Special Weapon 2 | 1 . . 1 . . . . Impact Weapon . | . . . . . . . . Slashing Weapon . | . . . . . . . . Piercing Weapon . | . . . . . . . . Special Melee Weapon . | . . . . . . . . Unidentified Prototypes . | . . . . . . . . Parts Lost 19 | . . . 11 . . . 8 Power 2 | . . . 1 . . . 1 Propulsion 7 | . . . 3 . . . 4 Utility 6 | . . . 4 . . . 2 Weapon 4 | . . . 3 . . . 1 Highest Loss Streak 8 | . . . 3 . . . 8 To Critical Strikes . | . . . . . . . . Average Slot Usage (%) 73 | . 100 100 63 55 55 63 28 Engine 2 | . 14 1 . . . 5 3 Core 6 | . . 12 9 . . . . Wheel 13 | . 28 28 13 . . . 1 Flight 8 | . . . 1 22 22 22 9 Device 9 | . 14 14 1 11 11 11 3 Storage 7 | . 14 14 10 . . . . Processor 7 | . . . 14 11 11 11 3 Energy Gun 5 | . 14 14 3 . . . . Ballistic Gun 1 | . . . 6 . . . . Special Weapon 9 | . 14 14 3 11 11 11 3 Naked Turns 30 | . . . . . . . 30 Heaviest Build 14 | 12 12 14 14 2 2 7 7 Greatest Support 26 | 26 20 20 20 8 8 8 10 Greatest Overweight (x) 3 | 2 . . 3 . . . . Average Overweight (x) . | . . . . . . . . Largest Inventory Capacity 8 | 8 8 8 8 5 5 5 5 Average Capacity 6 | 7 8 8 7 5 5 5 5 Most Carried 8 | 8 8 8 7 1 2 5 5 Average Carried 5 | 5 7 7 5 1 1 3 4 Final Capacity 8 | 8 8 8 5 5 5 5 5 Final Carried 8 | 8 8 8 1 1 2 5 4 Class Distribution -------------------- 53% | Mutant 28% | Scavenger-Mutant 17% | Scout Dominant Class ---------------- Mutant | -10/Materials Scavenger-Mutant | -10/Mines Mutant | -9/Materials Mutant | -9/Mines Mutant | -9/Exiles Scout | -8/Mines Mutant | -8/Materials Resources | -11 -10 -10 -9 -9 -9 -8 -8 ----------- Run | Jun Mat Min Mat Min Exi Min Mat Matter Collected 403 | 290 . 10 43 . . 60 . Remotely . | . . . . . . . . Salvage Created 435 | 197 . 146 92 . . . . Parts 26 | 17 . 6 3 . . . . Haulers Intercepted . | . . . . . . . . Recyclers Shooed . | . . . . . . . . Parts Field Recycled . | . . . . . . . . Retrieved Matter . | . . . . . . . . Parts Self-Destructed . | . . . . . . . . Prevented . | . . . . . . . . Kills | -11 -10 -10 -9 -9 -9 -8 -8 ------- Run | Jun Mat Min Mat Min Exi Min Mat Combat Hostiles Destroyed 5 | . . 3 2 . . . . Guns 3 | . . 2 1 . . . . AOE 2 | . . 1 1 . . . . Classes Destroyed 6 | 3 . 1 2 . . . . Worker 2 | 2 . . . . . . . Tunneler 4 | 4 . . . . . . . Recycler 1 | 1 . . . . . . . Grunt 3 | . . 3 . . . . . Duelist 1 | . . . 1 . . . . Sentry 1 | . . . 1 . . . . Best Kill Streak 4 | 4 . 2 1 . . . . Combat Bots Only 2 | . . 2 1 . . . . Max Kills in Single Turn 2 | 2 . 1 1 . . . . Gunslinging . | . . . . . . . . Exploded 1 | . . 1 1 . . . . Melee . | . . . . . . . . Uniques/NPCs Destroyed . | . . . . . . . . Combat | -11 -10 -10 -9 -9 -9 -8 -8 -------- Run | Jun Mat Min Mat Min Exi Min Mat Damage Taken 1707 | 4 . 138 790 . . 70 705 Core 945 | . . 34 297 . . 52 562 Absorbed by Shields . | . . . . . . . . Core Remaining (%) 66 | 100 . 86 . . . 12 . Volleys Fired 48 | 18 2 8 15 2 . 3 . Largest 1 | 1 1 1 1 1 . 1 . Hottest 100 | 40 40 40 40 100 . 100 . Shots Fired 48 | 18 2 8 15 2 . 3 . Gun 43 | 18 2 8 15 . . . . Cannon . | . . . . . . . . Launcher . | . . . . . . . . Special 5 | . . . . 2 . 3 . Kinetic 4 | . . . 4 . . . . Thermal 5 | . . . . 2 . 3 . Explosive . | . . . . . . . . Electromagnetic 39 | 18 2 8 11 . . . . Robot Hit Streak 4 | 4 1 2 4 . . 1 . Robot Miss Streak 3 | 1 1 2 3 2 . 1 . Penetration Max . | . . . . . . . . Secondary Targets . | . . . . . . . . Shots Hit Robots 28 | 13 1 4 9 . . 1 . Core Hits 16 | 7 . 5 3 . . . 1 Critical Kills . | . . . . . . . . Critical Parts Destroyed . | . . . . . . . . Critical Strikes . | . . . . . . . . Melee Attacks . | . . . . . . . . Impact . | . . . . . . . . Slashing . | . . . . . . . . Piercing . | . . . . . . . . Sneak Attacks . | . . . . . . . . Combat Hostiles . | . . . . . . . . Follow-up Attacks . | . . . . . . . . Damage Inflicted 768 | 309 69 122 239 . . 24 5 Guns 399 | 187 22 54 136 . . . . Cannons . | . . . . . . . . Explosions 338 | 122 47 68 101 . . . . Melee . | . . . . . . . . Ramming 7 | . . . 2 . . . 5 Kinetic 39 | . . . 39 . . . . Thermal 362 | 122 47 68 101 . . 24 . Explosive . | . . . . . . . . Electromagnetic 360 | 187 22 54 97 . . . . Impact . | . . . . . . . . Slashing . | . . . . . . . . Piercing . | . . . . . . . . Highest Corruption 2 | . . . . . . . 2 Average Corruption 2 | . . . . . . . 2 Corruption Purged . | . . . . . . . . Corruption Blocked . | . . . . . . . . Overload Shots . | . . . . . . . . Overflow Damage . | . . . . . . . . Projectiles . | . . . . . . . . Explosions . | . . . . . . . . Melee . | . . . . . . . . Knockbacks . | . . . . . . . . Impact . | . . . . . . . . Kinetic . | . . . . . . . . Secondary . | . . . . . . . . Self-Inflicted Damage 46 | 4 . 22 18 . . . 2 Shots 3 | 1 . 1 1 . . . . Rammed 4 | . . . 2 . . . 2 Targets Rammed 4 | . . . 2 . . . 2 Kicked . | . . . . . . . . Crushed . | . . . . . . . . Highest Temperature 48 | 12 . 48 21 1 . 3 . Average Temperature 14 | 12 . 19 13 1 . 1 . Received Heat Transfer 501 | . . 66 300 . . 18 117 Siege Activations . | . . . . . . . . Robots Corrupted . | . . . . . . . . Combat Hostiles . | . . . . . . . . Parts Fried . | . . . . . . . . Impact Corruptions . | . . . . . . . . Robots Melted . | . . . . . . . . Combat Hostiles . | . . . . . . . . Parts Melted 2 | . . 1 1 . . . . Heat Transferred 450 | 150 50 100 100 . . 50 . Parts Sabotaged . | . . . . . . . . Parts Stolen . | . . . . . . . . Parts Stripped . | . . . . . . . . Power Chain Reactions 5 | 2 1 1 1 . . . . Missiles Intercepted . | . . . . . . . . Alert | -11 -10 -10 -9 -9 -9 -8 -8 ------- Run | Jun Mat Min Mat Min Exi Min Mat Peak Influence 265 | 35 38 124 265 27 . 46 45 Initial 26 | . 22 14 . 26 . . 17 Average 64 | 13 24 63 148 26 . 15 17 Maximum Alert Level 1 | . . . 1 . . . . Low Security (%) 92 | 100 100 100 71 100 . 100 100 Level 1 7 | . . . 28 . . . . Level 2 . | . . . . . . . . Level 3 . | . . . . . . . . Level 4 . | . . . . . . . . Level 5 . | . . . . . . . . High Security . | . . . . . . . . Max Security . | . . . . . . . . Squads Dispatched 6 | . . . 3 . . . 3 Investigation 2 | . . . 2 . . . . Extermination . | . . . . . . . . Reinforcement 4 | . . . 1 . . . 3 Assault . | . . . . . . . . Garrison . | . . . . . . . . Intercept . | . . . . . . . . Searches Triggered . | . . . . . . . . Construction Impeded . | . . . . . . . . Haulers Reinforced . | . . . . . . . . Active Scanning Responses . | . . . . . . . . Cargo Convoy Interrupts . | . . . . . . . . Stealth | -11 -10 -10 -9 -9 -9 -8 -8 --------- Run | Jun Mat Min Mat Min Exi Min Mat Distress Signals 4 | . . . 4 . . . . Communications Jammed . | . . . . . . . . Distress Signals . | . . . . . . . . Times Spotted 50 | . 1 6 23 . . 7 13 Peak Tracking Total 11 | . 1 2 11 . . 6 11 Tactical Retreats 5 | . . . 3 . . 1 1 Traps | -11 -10 -10 -9 -9 -9 -8 -8 ------- Run | Jun Mat Min Mat Min Exi Min Mat Traps Triggered 2 | . . . 1 . . . 1 Indirectly . | . . . . . . . . Trap Hack Attempts . | . . . . . . . . Triggered . | . . . . . . . . Disarmed . | . . . . . . . . Reprogrammed . | . . . . . . . . Reused . | . . . . . . . . Traps Extracted . | . . . . . . . . Installed . | . . . . . . . . Triggered . | . . . . . . . . Machines | -11 -10 -10 -9 -9 -9 -8 -8 ---------- Run | Jun Mat Min Mat Min Exi Min Mat Machines Disabled 2 | . 1 . 1 . . . . Max in Single Turn 1 | . 1 . . . . . . Machines Repaired . | . . . . . . . . Machines Sabotaged . | . . . . . . . . Overloaded Fab Kills . | . . . . . . . . Hacking | -11 -10 -10 -9 -9 -9 -8 -8 --------- Run | Jun Mat Min Mat Min Exi Min Mat Machines Accessed 12 | . 2 1 6 . 2 . 1 Terminals 9 | . 2 1 6 . . . . Fabricators . | . . . . . . . . Repair Stations . | . . . . . . . . Recycling Units . | . . . . . . . . Scanalyzers 1 | . . . . . . . 1 Garrison Access . | . . . . . . . . Total Hacks 36 | . 4 1 15 . 8 . 8 Successful 19 | . . . 5 . 8 . 6 Failed 17 | . 4 1 10 . . . 2 Catastrophic 3 | . 1 . 2 . . . . Database Lockouts . | . . . . . . . . Manual 1 | . . . . . 1 . . Terminals 20 | . 4 1 15 . . . . Fabricators . | . . . . . . . . Repair Stations . | . . . . . . . . Recycling Units . | . . . . . . . . Scanalyzers 8 | . . . . . . . 8 Garrison Access . | . . . . . . . . Terminal Hacks 13 | . . . 5 . 8 . . Record 7 | . . . . . 7 . . Locate Traps 1 | . . . 1 . . . . Surveillance Status 1 | . . . 1 . . . . Investigation Status 1 | . . . 1 . . . . Zone Layout 2 | . . . 2 . . . . EX-Prototype ID Bank 1 | . . . . . 1 . . Fabricator Hacks . | . . . . . . . . Repair Station Hacks . | . . . . . . . . Recycling Unit Hacks . | . . . . . . . . Scanalyzer 6 | . . . . . . . 6 Insert Component 3 | . . . . . . . 3 Analyze 3 | . . . . . . . 3 Garrison Access Hacks . | . . . . . . . . Unauthorized Hacks . | . . . . . . . . Terminals . | . . . . . . . . Fabricators . | . . . . . . . . Repair Stations . | . . . . . . . . Recycling Units . | . . . . . . . . Scanalyzers . | . . . . . . . . Garrison Access . | . . . . . . . . Data Cores Recovered . | . . . . . . . . Used . | . . . . . . . . Hacking Detections 8 | . 2 1 5 . . . . Full Trace Events 3 | . . . 3 . . . . Feedback Events . | . . . . . . . . Feedback Blocked . | . . . . . . . . Robot Schematics Acquired . | . . . . . . . . Robots Built . | . . . . . . . . Authchips . | . . . . . . . . Time . | . . . . . . . . Total Robot Build Rating . | . . . . . . . . Part Schematics Acquired 2 | . . . . . . . 2 Parts Built . | . . . . . . . . Authchips . | . . . . . . . . Time . | . . . . . . . . Total Part Build Rating . | . . . . . . . . Parts Repaired . | . . . . . . . . Time . | . . . . . . . . Parts Recycled . | . . . . . . . . Recycled Matter . | . . . . . . . . Retrieved Matter . | . . . . . . . . Retrieved Components . | . . . . . . . . Parts Scanalyzed 2 | . . . . . . . 2 Part Schematics Acquired 2 | . . . . . . . 2 Parts Damaged . | . . . . . . . . Bothacking | -11 -10 -10 -9 -9 -9 -8 -8 ------------ Run | Jun Mat Min Mat Min Exi Min Mat Used RIF Installer . | . . . . . . . . Robots Hacked . | . . . . . . . . Non-combat . | . . . . . . . . Combat . | . . . . . . . . Robot Hacks Applied . | . . . . . . . . Relay Couplers Released . | . . . . . . . . Fabnet Peak Effective % . | . . . . . . . . Robots Rewired . | . . . . . . . . Allies Hacked . | . . . . . . . . Hacks Repelled . | . . . . . . . . Allies | -11 -10 -10 -9 -9 -9 -8 -8 -------- Run | Jun Mat Min Mat Min Exi Min Mat Total Allies 2 | . . 2 . . . . . Largest Group 2 | . . 2 2 . . . . Highest-Rated Group 47 | . . 47 47 . . . . Highest-Rated Ally 31 | . . 31 31 . . . . Total Orders . | . . . . . . . . Ally Attacks 15 | . . 6 9 . . . . Total Damage 226 | . . 84 142 . . . . Kills 5 | . . 1 4 . . . . Allies Corrupted . | . . . . . . . . Allies Melted . | . . . . . . . . Intel | -11 -10 -10 -9 -9 -9 -8 -8 ------- Run | Jun Mat Min Mat Min Exi Min Mat Robot Analysis Total . | . . . . . . . . Derelict Logs Recovered 2 | . . 2 . . . . . Drone Launches . | . . . . . . . . Drone Recoveries . | . . . . . . . . Exploration | -11 -10 -10 -9 -9 -9 -8 -8 ------------- Run | Jun Mat Min Mat Min Exi Min Mat Turns Passed 1830 | 167 81 508 409 106 186 293 80 Spaces Moved 2503 | 103 86 550 369 196 543 487 169 Core 131 | 15 . . 52 . . . 64 Treads . | . . . . . . . . Legs . | . . . . . . . . Wheels 982 | 88 86 550 247 . . . 11 Hover 2 | . . . . . . 2 . Flight 1388 | . . . 70 196 543 485 94 Fastest Speed 34 | 50 80 80 34 34 34 34 34 Average Speed 56 | 90 80 80 83 34 34 34 43 Slowest Speed 200 | 150 80 80 200 34 34 60 80 Overloaded Moves . | . . . . . . . . Propulsion Burnouts . | . . . . . . . . Robots Hopped 5 | . . . 4 . . . 1 Cave-ins Triggered . | . . . . . . . . Exploration Rate (%) 53 | 7 25 97 49 54 91 78 23 Regions Visited 7 Branch Regions 4 Pre-discovered Areas 1 | . . . . . 1 . . Known Exits Taken . | . . . . . . . . Unknown Exits Taken 7 | 1 1 1 1 1 1 1 . Scrap Searched 3 | . . 2 . . . 1 . Spaces Dug . | . . . . . . . . Terrain Destroyed 14 | 5 1 4 2 1 . 1 . Melee . | . . . . . . . . Projectile 2 | . . . . 1 . 1 . AOE 12 | 5 1 4 2 . . . . Terrain Rammed . | . . . . . . . . Walls Destroyed . | . . . . . . . . Machines Disabled . | . . . . . . . . Actions | -11 -10 -10 -9 -9 -9 -8 -8 --------- Run | Jun Mat Min Mat Min Exi Min Mat Total 2864 | 160 96 611 448 228 543 603 175 Wait 254 | 8 5 46 56 31 . 106 2 Move 2488 | 102 85 549 362 195 542 486 167 Hop 3 | . . . 2 . . . 1 Pick Up 30 | 17 2 3 2 . 1 4 1 Fast Attach 5 | 3 . . . . . 2 . Attach 16 | 5 . . 9 . . 1 1 Detach . | . . . . . . . . Swap 2 | 1 . 1 . . . . . Drop 14 | 6 2 4 . . . 1 1 Fire 48 | 18 2 8 15 2 . 3 . Melee . | . . . . . . . . Ram 4 | . . . 2 . . . 2 Kick . | . . . . . . . . Crush . | . . . . . . . . Escape Stasis . | . . . . . . . . Rewire . | . . . . . . . . Trap . | . . . . . . . . Miscellaneous . | . . . . . . . . Route ------- -11/Junkyard -10/Materials -10/Mines (discovered 2 exits: *Mat x2) -9/Materials -9/Mines (discovered 3 exits: *Mat x2 / *Exi) -9/Exiles (discovered 2 exits: [*Min x2]) -8/Mines -8/Materials History --------- Turn | Location | Event 40 | -11/Junkyard | Discovered new exit (range 15) 168 | -11/Junkyard | Entered Materials 237 | -10/Materials | Discovered new exit (range 9) 249 | -10/Materials | Entered Mines 333 | -10/Mines | Learned Materials security intel 371 | -10/Mines | Joined a pair of Derelicts in attacking an 0b10 outpost 484 | -10/Mines | Discovered new exit (range 7) 498 | -10/Mines | Learned Materials emergency access door positions 503 | -10/Mines | Discovered new exit (range 10) 584 | -10/Mines | Build established: Scavenger-Mutant 757 | -10/Mines | Entered Materials 757 | -9/Materials | Accompanied by 2 allies 757 | -9/Materials | Evolved 2 slots: Propulsion x1, Utility x1 762 | -9/Materials | Led the pair of lost Derelicts to an unsafe place 902 | -9/Materials | Lost 3 parts (1n2w) 1115 | -9/Materials | Build established: Mutant 1121 | -9/Materials | Core integrity fell below 50% 1155 | -9/Materials | Discovered new exit (range 16) 1166 | -9/Materials | Entered Mines 1212 | -9/Mines | Discovered new exit (range 8) 1249 | -9/Mines | Discovered new exit (range 7) 1270 | -9/Mines | Deemed a non-threat by the Exiles lab entrance 1270 | -9/Mines | Discovered new exit (range 5) 1272 | -9/Mines | Entered Exiles 1278 | -9/Exiles | Discovered new exit (range 15) 1288 | -9/Exiles | Met 8R-AWN 1295 | -9/Exiles | Met EX-HEX 1305 | -9/Exiles | Met EX-BIN 1312 | -9/Exiles | Aligned with FarCom system 1312 | -9/Exiles | Given EX-Vault access code 1326 | -9/Exiles | Opened EX-Vault 1329 | -9/Exiles | Found Cloak of Protection 1337 | -9/Exiles | Warned to stay clear of 0b10 Research branches 1347 | -9/Exiles | Met EX-DEC 1348 | -9/Exiles | Learned location of Zion (-7) 1366 | -9/Exiles | Discovered new exit (range 14) 1394 | -9/Exiles | Visited The Gauntlet 1458 | -9/Exiles | Left Exiles lab with Cloak of Protection 1458 | -9/Exiles | Entered Mines 1732 | -8/Mines | Core integrity fell below 20% 1747 | -8/Mines | Discovered new exit (range 9) 1751 | -8/Mines | Entered Materials 1751 | -8/Materials | Evolved 2 slots: Power x1, Utility x1 1752 | -8/Materials | Build established: Scout 1819 | -8/Materials | Core integrity fell below 50% 1824 | -8/Materials | Core integrity fell below 20% 1831 | -8/Materials | Destroyed by C-17 Slicer with Blade Saw Last Messages --------------- 01785_ VTOL Module destroyed. 01785_ Knocked back. 01786_ Lgt. Deuterium Engine destroyed. 01786_ Mining Laser destroyed. 01786_ Knocked back. 01787_ C-17 Slicer knocked back. 01787_ C-17 Slicer destroyed. 01788_ Imp. Terrain Scanner destroyed. 01791_ U-05 Engineer lays Concrete. 01796_ Airjet destroyed. 01796_ Wheel destroyed. 01798_ Slug penetrates Wall. 01801_ Penetrated by Slug. 01801_ Flight Unit destroyed. 01808_ Slammed into A-02 Transporter. 01818_ Slammed into G-47 Trooper. 01819_ Penetrated by Slug. 01822_ Slug penetrates Wall. 01830_ ALERT: Hostiles spotted, dispatching reinforcements to Terminal M004. Map ----- +----------------------------------------------------+ | ?????# ####### #?# #?? | | ???? ### ! ! #????????? | | ???? + ! #????????? | | ???? ### !! !#?????? | | ?????# ######### #?# !! = ! !#????? | | ?????####??????????# #?# =! !#????? | | ????????????????####/######### =! ] ! !#????? | | ????????????????# =##??? = ! !#????? | | ????????????????# """ #??# ] !##????? | | ###########?????# """ ##??# ##T##+######?????? | | # ####### """ #???# ??##?????????????? | | # # # #???# %#?????????????????? | | # # # #???## ??????????????????? | | # !%+ %/ #???? ??????????????????? | | # # # #???? ??????????????????? | | # # Y# " " #????g ??????????????????? | | # ## ## "R" #????g ??????????????????? | | #! ##Y ## """ #???? ???????????????????? | | ############ ##########????????????????????????? | | ???????????# gg#?????????????????????????????????? | | ???????????# gh#?????????????????????????????????? | | ???????????# g#?????????????????????????????????? | | ???????????# ##############+#######????????????? | | ???????????# #????????????? | | ???????????# #????????????? | | ???????????# c c@ #????????????? | | ???????????####+################# #????????????? | | ?????????????? ????????????????????????????????? | | ?????????????? ????????????????????????????????? | | ????????????? ???????????????????????????????? | | ????????????? ?????????????????gg????????????? | | ???????????? "??????????????????????????????? | | ????????????!!! T??????????????????????????????? | | ??????????? Y! ""?????????????????????????????? | | ??????????? !! ?????????????????????????????? | | ??????????## ######??????????????????????????????? | | ???????????##????????????????????????????????????? | | ?????????????????????????????????????????????????? | | ?????????????????????????????????????????????????? | | ?????????????????????????????????????????????????? | | ?????????????????????????????????????????????????? | | ?????????????????????????????????????????????????? | | ?????????????????????????????????????????????????? | | | | | | | | | | | | | | | +----------------------------------------------------+ Best States ------------- Heat Dissipation 31 Energy Generation 14 Energy Capacity 160 Matter Stores 300 Matter Capacity 300 Sight Range 16 Terrain Scan Density 10 Evasion (%) 63 Targeting Accuracy 10 Item Schematics ----------------- Imp. Utility Shielding | -8/Materials | Scanalyzed Wheel | -8/Materials | Scanalyzed Robot Schematics ------------------ None Fabricated ------------ Nothing Alien Tech Used ----------------- None Achievements -------------- Cya! Challenges ------------ None Game ------ Seed VisualAerolevCannon Manual? 0 Play Time 00:39:15 Cumulative 39.9 hours Start 2023.07.06 @ 16:38:10 End 2023.07.06 @ 17:57:47 Sessions 3 Manual Loads 0 Difficulty Rogue Special Mode None Game No. 51 Rogue 51 Adventurer 0 Explorer 0 Win Type - Total 0 Types 0/0/0/0/0/0/0/0/0 Lore% 16 Gallery% 29 Achievement% 21 Wizard Run 0 Options --------- ASCII 0 Keyboard 0 Movement Mouse Keybinds 0 Fullscreen 1 Font 24/Smallcaps Map View 76x50 Tactical HUD 1 Map Filters NONE Filters NONE Steam 1 RUN: 16452f9c-9400-441c-97ef-3ce65f54d59f